fUST/lending_fUST_20250726
["ID","MTS","AMOUNT","RATE_DAILY","PERIOD"]
[375087385,1753523141973,-506.12,0.00019178,2]
[375087386,1753523141996,-460.0,0.00019178,2]
[375087387,1753523142016,-460.0,0.00019178,2]
[375087388,1753523142036,-460.0,0.00019178,2]
[375087389,1753523142057,-460.0,0.00019178,2]
[375087390,1753523142078,-460.0,0.00019178,2]
[375087391,1753523142098,-460.0,0.00019178,2]
[375087392,1753523142118,-236.00996482,0.00019178,2]
[375087393,1753523142142,-460.0,0.00019178,2]
[375087394,1753523142162,-460.0,0.00019178,2]
[375087395,1753523142185,-572.94459415,0.00019178,2]
[375087396,1753523142208,-160.2992003,0.00019178,2]
[375087397,1753523142230,-460.0,0.00019178,2]
[375087398,1753523142250,-460.0,0.00019178,2]
[375087399,1753523142270,-460.0,0.00019178,2]
[375087400,1753523142289,-460.0,0.00019178,2]
[375087401,1753523142311,-756.47,0.00019178,2]
[375087402,1753523142331,-460.0,0.00019178,2]
[375087403,1753523142351,-714.53,0.00019178,2]
[375087404,1753523142371,-491.19,0.00019178,2]
[375087405,1753523142391,-460.0,0.00019178,2]
[375087406,1753523142523,-460.0,0.00019178,2]
[375087407,1753523142546,-460.0,0.00019178,2]
[375087408,1753523142567,-460.0,0.00019178,2]
[375087409,1753523142589,-460.0,0.00019178,2]
[375087410,1753523142610,-460.0,0.00019178,2]
[375087411,1753523142630,-460.0,0.00019178,2]
[375087412,1753523142649,-460.0,0.00019178,2]
[375087413,1753523142669,-460.0,0.00019178,2]
[375087414,1753523142691,-460.0,0.00019178,2]
[375087415,1753523142713,-460.0,0.00019178,2]
[375087416,1753523142736,-460.0,0.00019178,2]
[375087417,1753523142760,-594.41,0.00019178,2]
[375087418,1753523142781,-606.54,0.00019178,2]
[375087419,1753523142803,-460.0,0.00019178,2]
[375087420,1753523142823,-460.0,0.00019178,2]
[375087421,1753523142845,-460.0,0.00019178,2]
[375087422,1753523142869,-460.0,0.00019178,2]
[375087423,1753523142890,-685.85,0.00019178,2]
[375087424,1753523142910,-313.6172345,0.00019178,2]
[375087425,1753523142931,-460.0,0.00019178,2]
[375087426,1753523142955,-460.0,0.00019178,2]
[375087427,1753523142976,-460.0,0.00019178,2]
[375087428,1753523142997,-460.0,0.00019178,2]
[375087429,1753523143018,-460.0,0.00019178,2]
[375087430,1753523143038,-463.27187243,0.00019178,2]
[375087431,1753523143058,-460.0,0.00019178,2]
[375087432,1753523143079,-460.0,0.00019178,2]
[375087433,1753523143098,-460.0,0.00019178,2]
[375087434,1753523143119,-460.0,0.00019178,2]
[375087435,1753523143143,-460.0,0.00019178,2]
[375087436,1753523143167,-11874.37,0.00019178,2]
[375087437,1753523143187,-460.0,0.00019178,2]
[375087438,1753523143208,-460.0,0.00019178,2]
[375087439,1753523143228,-465.79199405,0.00019178,2]
[375087440,1753523143249,-460.0,0.00019178,2]
[375087441,1753523143269,-533.92,0.00019178,2]
[375087442,1753523143290,-1426.77,0.00019178,2]
[375087443,1753523143311,-460.0,0.00019178,2]
[375087444,1753523143332,-1759.69,0.00019178,2]
[375087445,1753523143354,-460.0,0.00019178,2]
[375087446,1753523143381,-460.0,0.00019178,2]
[375087447,1753523143401,-460.0,0.00019178,2]
[375087448,1753523143421,-460.0,0.00019178,2]
[375087449,1753523143441,-460.0,0.00019178,2]
[375087450,1753523143460,-219.461972,0.00019178,2]
[375087451,1753523143480,-460.0,0.00019178,2]
[375087452,1753523143502,-1107.95,0.00019178,2]
[375087453,1753523143522,-460.0,0.00019178,2]
[375087454,1753523143543,-440.52236543,0.00019178,2]
[375087455,1753523143565,-693.92,0.00019178,2]
[375087456,1753523143587,-1195.09,0.00019178,2]
[375087457,1753523143607,-460.0,0.00019178,2]
[375087458,1753523143629,-3063.38,0.00019178,2]
[375087459,1753523143651,-938.81,0.00019178,2]
[375087460,1753523143673,-562.2,0.00019178,2]
[375087461,1753523143694,-460.0,0.00019178,2]
[375087462,1753523143715,-461.74348419,0.00019178,2]
[375087463,1753523143736,-930.64,0.00019178,2]
[375087464,1753523143758,-460.0,0.00019178,2]
[375087465,1753523143779,-292.22839064,0.00019178,2]
[375087467,1753523183003,184.633473,0.00013699,2]
[375087469,1753523221884,153.0,0.00024,120]
[375087470,1753523223267,153.0,0.000251,120]
[375087591,1753523439173,-300.0,0.00019077,2]
[375087592,1753523439184,-17655.41265968,0.00019078,2]
[375087593,1753523439193,-167.77160936,0.00019178,2]
[375087594,1753523439203,-460.0,0.00019178,2]
[375087595,1753523439213,-460.0,0.00019178,2]
[375087596,1753523439223,-460.0,0.00019178,2]
[375087597,1753523439233,-460.0,0.00019178,2]
[375087598,1753523439242,-460.0,0.00019178,2]
[375087599,1753523439252,-460.0,0.00019178,2]
[375087600,1753523439262,-464.2059696,0.00019178,2]
[375087601,1753523439272,-460.0,0.00019178,2]
[375087602,1753523439282,-599.24,0.00019178,2]
[375087603,1753523439291,-460.0,0.00019178,2]
[375087604,1753523439301,-460.0,0.00019178,2]
[375087605,1753523439311,-460.0,0.00019178,2]
[375087606,1753523439320,-460.0,0.00019178,2]
[375087607,1753523439330,-460.0,0.00019178,2]
[375087608,1753523439340,-460.0,0.00019178,2]
[375087609,1753523439351,-460.0,0.00019178,2]
[375087610,1753523439360,-460.0,0.00019178,2]
[375087611,1753523439371,-460.0,0.00019178,2]
[375087612,1753523439380,-460.0,0.00019178,2]
[375087613,1753523439391,-460.0,0.00019178,2]
[375087614,1753523439400,-460.0,0.00019178,2]
[375087615,1753523439411,-460.0,0.00019178,2]
[375087616,1753523439420,-460.0,0.00019178,2]
[375087617,1753523439430,-460.0,0.00019178,2]
[375087618,1753523439440,-460.0,0.00019178,2]
[375087619,1753523439450,-561.06975132,0.00019178,2]
[375087620,1753523439460,-460.0,0.00019178,2]
[375087621,1753523439470,-460.0,0.00019178,2]
[375087622,1753523439480,-883.45,0.00019178,2]
[375087623,1753523439489,-460.0,0.00019178,2]
[375087624,1753523439499,-573.82,0.00019178,2]
[375087625,1753523439642,-460.0,0.00019178,2]
[375087626,1753523439653,-460.0,0.00019178,2]
[375087627,1753523439663,-1000.0,0.00019178,2]
[375087628,1753523439672,-460.0,0.00019178,2]
[375087629,1753523439682,-204.41836612,0.00019178,2]
[375087630,1753523439691,-432.45527726,0.00019178,2]
[375087631,1753523439701,-460.0,0.00019178,2]
[375087632,1753523439711,-460.0,0.00019178,2]
[375087633,1753523439720,-485.03,0.00019178,2]
[375087634,1753523439730,-555.83,0.00019178,2]
[375087635,1753523439739,-460.0,0.00019178,2]
[375087636,1753523439749,-460.0,0.00019178,2]
[375087637,1753523439759,-539.81,0.00019178,2]
[375087638,1753523439768,-460.0,0.00019178,2]
[375087639,1753523439778,-465.50452934,0.00019178,2]
[375087640,1753523439788,-460.0,0.00019178,2]
[375087641,1753523439797,-263.11077353,0.00019178,2]
[375087642,1753523439807,-460.0,0.00019178,2]
[375087643,1753523439816,-468.97234156,0.00019178,2]
[375087644,1753523439826,-460.0,0.00019178,2]
[375087645,1753523439835,-460.0,0.00019178,2]
[375087646,1753523439844,-460.0,0.00019178,2]
[375087647,1753523439854,-460.0,0.00019178,2]
[375087648,1753523439863,-466.52895291,0.00019178,2]
[375087649,1753523439873,-460.0,0.00019178,2]
[375087650,1753523439883,-460.0,0.00019178,2]
[375087651,1753523439892,-319.29680335,0.00019178,2]
[375087652,1753523439903,-7178.19,0.00019178,2]
[375087653,1753523439914,-460.0,0.00019178,2]
[375087654,1753523439925,-5459.94,0.00019178,2]
[375087655,1753523439936,-151.0,0.00019178,2]
[375087656,1753523439946,-460.0,0.00019178,2]
[375087657,1753523439956,-460.0,0.00019178,2]
[375087658,1753523439966,-3434.32,0.00019178,2]
[375087659,1753523439976,-460.0,0.00019178,2]
[375087661,1753523439986,-460.0,0.00019178,2]
[375087663,1753523439995,-2148.47,0.00019178,2]
[375087665,1753523440005,-460.0,0.00019178,2]
[375087667,1753523440014,-460.0,0.00019178,2]
[375087669,1753523440024,-460.0,0.00019178,2]
[375087671,1753523440033,-460.0,0.00019178,2]
[375087673,1753523440043,-460.0,0.00019178,2]
[375087675,1753523440052,-460.0,0.00019178,2]
[375087676,1753523440062,-763.83,0.00019178,2]
[375087678,1753523440075,-460.0,0.00019178,2]
[375087680,1753523440084,-460.0,0.00019178,2]
[375087682,1753523440094,-460.0,0.00019178,2]
[375087684,1753523440103,-460.0,0.00019178,2]
[375087686,1753523440116,-460.0,0.00019178,2]
[375087688,1753523440131,-211.0039443,0.00019178,2]
[375087691,1753523440140,-1106.1,0.00019178,2]
[375087693,1753523440150,-460.0,0.00019178,2]
[375087695,1753523440160,-460.0,0.00019178,2]
[375087696,1753523440170,-460.0,0.00019178,2]
[375087698,1753523440179,-460.0,0.00019178,2]
[375087700,1753523440188,-4049.35,0.00019178,2]
[375087702,1753523440198,-1074.16,0.00019178,2]
[375087704,1753523440207,-460.0,0.00019178,2]
[375087706,1753523440216,-460.0,0.00019178,2]
[375087708,1753523440225,-593.69,0.00019178,2]
[375087710,1753523440235,-460.0,0.00019178,2]
[375087712,1753523440244,-460.0,0.00019178,2]
[375087714,1753523440254,-460.0,0.00019178,2]
[375087716,1753523440263,-462.5522571,0.00019178,2]
[375087718,1753523440272,-991.35,0.00019178,2]
[375087720,1753523440282,-460.0,0.00019178,2]
[375087722,1753523440291,-460.0,0.00019178,2]
[375087724,1753523440305,-3690.7,0.00019178,2]
[375087726,1753523440315,-724.95,0.00019178,2]
[375087728,1753523440324,-460.0,0.00019178,2]
[375087730,1753523440334,-890.03,0.00019178,2]
[375087732,1753523440345,-460.0,0.00019178,2]
[375087734,1753523440354,-674.37,0.00019178,2]
[375087736,1753523440364,-460.0,0.00019178,2]
[375087738,1753523440375,-550.24564176,0.00019178,2]
[375087740,1753523440386,-460.0,0.00019178,2]
[375087742,1753523440395,-991.04,0.00019178,2]
[375087744,1753523440405,-918.24,0.00019178,2]
[375087746,1753523440414,-460.0,0.00019178,2]
[375087748,1753523440423,-460.0,0.00019178,2]
[375087750,1753523440432,-248.2833799,0.00019178,2]
[375087752,1753523440441,-197.96320932,0.00019178,2]
[375087754,1753523440450,-460.0,0.00019178,2]
[375087756,1753523440460,-460.0,0.00019178,2]
[375087758,1753523440471,-615.89,0.00019178,2]
[375087761,1753523440485,-1741.09,0.00019178,2]
[375087763,1753523440504,-2486.14,0.00019178,2]
[375087765,1753523440514,-573.35,0.00019178,2]
[375087767,1753523440523,-460.0,0.00019178,2]
[375087769,1753523440533,-726.62,0.00019178,2]
[375087771,1753523440543,-460.0,0.00019178,2]
[375087773,1753523440557,-460.0,0.00019178,2]
[375087775,1753523440572,-460.0,0.00019178,2]
[375087778,1753523440586,-460.0,0.00019178,2]
[375087780,1753523440600,-460.0,0.00019178,2]
[375087783,1753523440613,-460.0,0.00019178,2]
[375087785,1753523440627,-460.0,0.00019178,2]
[375087787,1753523440642,-460.0,0.00019178,2]
[375087790,1753523440656,-460.0,0.00019178,2]
[375087792,1753523440669,-1145.29,0.00019178,2]
[375087794,1753523440682,-460.0,0.00019178,2]
[375087797,1753523440695,-751.64,0.00019178,2]
[375087799,1753523440710,-504.08381758,0.00019178,2]
[375087802,1753523440723,-197.26026755,0.00019178,2]
[375087804,1753523440735,-460.0,0.00019178,2]
[375087806,1753523440749,-460.0,0.00019178,2]
[375087809,1753523440762,-3362.76,0.00019178,2]
[375087811,1753523440775,-460.0,0.00019178,2]
[375087813,1753523440788,-460.0,0.00019178,2]
[375087816,1753523440801,-640.97,0.00019178,2]
[375087818,1753523440812,-460.0,0.00019178,2]
[375087820,1753523440825,-460.0,0.00019178,2]
[375087822,1753523440837,-943.5,0.00019178,2]
[375087825,1753523440851,-460.0,0.00019178,2]
[375087827,1753523440864,-460.0,0.00019178,2]
[375087829,1753523440876,-1129.76,0.00019178,2]
[375087832,1753523440891,-460.0,0.00019178,2]
[375087834,1753523440905,-500.0,0.00019178,2]
[375087836,1753523440922,-500.0,0.00019178,2]
[375087838,1753523440933,-500.0,0.00019178,2]
[375087841,1753523440943,-500.0,0.00019178,2]
[375087843,1753523440954,-500.0,0.00019178,2]
[375087845,1753523440968,-500.0,0.00019178,2]
[375087847,1753523440982,-1082.57,0.00019178,2]
[375087850,1753523440995,-538.78,0.00019178,2]
[375087852,1753523441006,-1532.47,0.00019178,2]
[375087853,1753523441018,-460.0,0.00019178,2]
[375087854,1753523441029,-488.22,0.00019178,2]
[375087855,1753523441041,-862.86,0.00019178,2]
[375087856,1753523441052,-460.0,0.00019178,2]
[375087857,1753523441063,-595.67,0.00019178,2]
[375087858,1753523441075,-460.0,0.00019178,2]
[375087859,1753523441086,-247.77448983,0.00019178,2]
[375087860,1753523441103,-11131.83551017,0.00019178,2]
[375087861,1753523441115,-665.0,0.00019178,2]
[375087862,1753523441128,-460.0,0.00019178,2]
[375087864,1753523441140,-500.0,0.00019178,2]
[375087867,1753523441152,-666.0,0.00019178,2]
[375087869,1753523441163,-488.954786,0.00019178,2]
[375087871,1753523441176,-187.46047144,0.00019352,2]
[375087873,1753523441187,-223.0315306,0.0001944,2]
[375087875,1753523441198,-222.27,0.00019442,3]
[375087878,1753523441210,-666.83,0.00019442,3]
[375087880,1753523441222,-5000.0,0.00019442,2]
[375087882,1753523441234,-500.0,0.00019451,2]
[375087884,1753523441246,-500.0,0.00019451,2]
[375087886,1753523441257,-510.69,0.00019451,2]
[375087889,1753523441269,-462.73118339,0.00019452,2]
[375087891,1753523441281,-460.0,0.00019452,2]
[375087893,1753523441293,-460.0,0.00019452,2]
[375087895,1753523441304,-460.0,0.00019452,2]
[375087898,1753523441317,-460.0,0.00019452,2]
[375087900,1753523441328,-460.0,0.00019452,2]
[375087902,1753523441339,-460.0,0.00019452,2]
[375087904,1753523441351,-460.0,0.00019452,2]
[375087906,1753523441362,-460.0,0.00019452,2]
[375087909,1753523441374,-460.0,0.00019452,2]
[375087911,1753523441386,-460.0,0.00019452,2]
[375087913,1753523441398,-714.53,0.00019452,2]
[375087915,1753523441409,-491.19,0.00019452,2]
[375087917,1753523441420,-460.0,0.00019452,2]
[375087920,1753523441431,-460.0,0.00019452,2]
[375087922,1753523441442,-493.48910538,0.00019452,2]
[375087924,1753523441454,-460.0,0.00019452,2]
[375087926,1753523441465,-594.41,0.00019452,2]
[375087929,1753523441477,-606.54,0.00019452,2]
[375087931,1753523441489,-429.13335672,0.00019452,2]
[375087933,1753523441501,-240.6657025,0.00019452,2]
[375087935,1753523441512,-460.0,0.00019452,2]
[375087937,1753523441523,-685.85,0.00019452,2]
[375087940,1753523441536,-569.79748834,0.00019452,2]
[375087942,1753523441547,-460.0,0.00019452,2]
[375087944,1753523441558,-460.0,0.00019452,2]
[375087946,1753523441570,-460.0,0.00019452,2]
[375087948,1753523441582,-460.0,0.00019452,2]
[375087950,1753523441596,-460.0,0.00019452,2]
[375087953,1753523441608,-460.0,0.00019452,2]
[375087955,1753523441620,-277.66243414,0.00019452,2]
[375087957,1753523441630,-460.0,0.00019452,2]
[375087959,1753523441639,-460.0,0.00019452,2]
[375087972,1753523441748,-533.92,0.00019452,2]
[375087976,1753523441784,-460.0,0.00019452,2]
[375087978,1753523441794,-460.0,0.00019452,2]
[375087980,1753523441804,-460.0,0.00019452,2]
[375087982,1753523441814,-460.0,0.00019452,2]
[375087984,1753523441825,-460.0,0.00019452,2]
[375087986,1753523441834,-1107.95,0.00019452,2]
[375087988,1753523441845,-460.0,0.00019452,2]
[375087990,1753523441855,-938.81,0.00019452,2]
[375087992,1753523441866,-460.0,0.00019452,2]
[375087994,1753523441875,-460.0,0.00019452,2]
[375087996,1753523441885,-460.0,0.00019452,2]
[375087998,1753523441895,-460.0,0.00019452,2]
[375088000,1753523441906,-460.0,0.00019452,2]
[375088002,1753523441915,-460.0,0.00019452,2]
[375088004,1753523441925,-599.24,0.00019452,2]
[375088006,1753523441935,-460.0,0.00019452,2]
[375088008,1753523441945,-460.0,0.00019452,2]
[375088009,1753523441954,-460.0,0.00019452,2]
[375088012,1753523441972,-460.0,0.00019452,2]
[375088013,1753523441981,-460.0,0.00019452,2]
[375088015,1753523441991,-460.0,0.00019452,2]
[375088017,1753523442000,-591.48669691,0.00019452,2]
[375088019,1753523442009,-532.99586021,0.00019452,2]
[375088021,1753523442019,-460.0,0.00019452,2]
[375088023,1753523442028,-460.0,0.00019452,2]
[375088025,1753523442038,-460.0,0.00019452,2]
[375088027,1753523442047,-883.45,0.00019452,2]
[375088029,1753523442056,-460.0,0.00019452,2]
[375088031,1753523442066,-573.82,0.00019452,2]
[375088033,1753523442075,-471.83709063,0.00019452,2]
[375088035,1753523442085,-465.80960585,0.00019452,2]
[375088037,1753523442094,-460.0,0.00019452,2]
[375088039,1753523442103,-460.0,0.00019452,2]
[375088041,1753523442115,-485.03,0.00019452,2]
[375088043,1753523442124,-555.83,0.00019452,2]
[375088045,1753523442134,-539.81,0.00019452,2]
[375088047,1753523442143,-460.0,0.00019452,2]
[375088049,1753523442154,-460.0,0.00019452,2]
[375088052,1753523442163,-460.0,0.00019452,2]
[375088053,1753523442172,-460.0,0.00019452,2]
[375088055,1753523442182,-460.0,0.00019452,2]
[375088059,1753523442201,-377.29584158,0.00019452,2]
[375088061,1753523442212,-7178.19,0.00019452,2]
[375088063,1753523442222,-5459.94,0.00019452,2]
[375088065,1753523442232,-460.0,0.00019452,2]
[375088067,1753523442242,-3434.32,0.00019452,2]
[375088069,1753523442252,-460.0,0.00019452,2]
[375088071,1753523442262,-2148.47,0.00019452,2]
[375088073,1753523442272,-460.0,0.00019452,2]
[375088075,1753523442282,-460.0,0.00019452,2]
[375088077,1753523442292,-460.0,0.00019452,2]
[375088078,1753523442306,-347.01794126,0.00019452,2]
[375088079,1753523442316,-460.0,0.00019452,2]
[375088080,1753523442326,-460.0,0.00019452,2]
[375088081,1753523442336,-763.83,0.00019452,2]
[375088082,1753523442347,-467.56894109,0.00019452,2]
[375088084,1753523442356,-460.0,0.00019452,2]
[375088086,1753523442366,-460.0,0.00019452,2]
[375088088,1753523442376,-460.0,0.00019452,2]
[375088090,1753523442386,-1106.1,0.00019452,2]
[375088092,1753523442396,-590.67,0.00019452,2]
[375088094,1753523442406,-460.0,0.00019452,2]
[375088096,1753523442417,-460.0,0.00019452,2]
[375088098,1753523442426,-460.0,0.00019452,2]
[375088100,1753523442436,-4049.35,0.00019452,2]
[375088102,1753523442446,-1074.16,0.00019452,2]
[375088104,1753523442456,-460.0,0.00019452,2]
[375088106,1753523442466,-593.69,0.00019452,2]
[375088108,1753523442475,-460.0,0.00019452,2]
[375088110,1753523442485,-460.0,0.00019452,2]
[375088113,1753523442496,-460.0,0.00019452,2]
[375088115,1753523442506,-991.35,0.00019452,2]
[375088117,1753523442515,-460.0,0.00019452,2]
[375088119,1753523442525,-460.0,0.00019452,2]
[375088121,1753523442535,-3690.7,0.00019452,2]
[375088123,1753523442545,-724.95,0.00019452,2]
[375088125,1753523442556,-460.0,0.00019452,2]
[375088127,1753523442566,-890.03,0.00019452,2]
[375088129,1753523442576,-674.37,0.00019452,2]
[375088131,1753523442586,-460.0,0.00019452,2]
[375088133,1753523442595,-460.0,0.00019452,2]
[375088136,1753523442606,-991.04,0.00019452,2]
[375088140,1753523442616,-918.24,0.00019452,2]
[375088142,1753523442625,-460.0,0.00019452,2]
[375088145,1753523442635,-460.0,0.00019452,2]
[375088148,1753523442645,-460.0,0.00019452,2]
[375088150,1753523442655,-615.89,0.00019452,2]
[375088153,1753523442664,-1741.09,0.00019452,2]
[375088155,1753523442674,-2486.14,0.00019452,2]
[375088157,1753523442684,-573.35,0.00019452,2]
[375088159,1753523442693,-210.006976,0.00019452,2]
[375088161,1753523442703,-726.62,0.00019452,2]
[375088163,1753523442713,-460.0,0.00019452,2]
[375088165,1753523442722,-460.0,0.00019452,2]
[375088167,1753523442732,-460.0,0.00019452,2]
[375088169,1753523442742,-460.0,0.00019452,2]
[375088171,1753523442751,-392.2186053,0.00019452,2]
[375088173,1753523442761,-460.0,0.00019452,2]
[375088175,1753523442771,-460.0,0.00019452,2]
[375088177,1753523442780,-1145.29,0.00019452,2]
[375088179,1753523442790,-460.0,0.00019452,2]
[375088181,1753523442799,-751.64,0.00019452,2]
[375088183,1753523442809,-460.0,0.00019452,2]
[375088185,1753523442818,-460.0,0.00019452,2]
[375088188,1753523442828,-460.0,0.00019452,2]
[375088190,1753523442838,-3362.76,0.00019452,2]
[375088192,1753523442847,-640.97,0.00019452,2]
[375088194,1753523442856,-460.0,0.00019452,2]
[375088195,1753523442866,-460.0,0.00019452,2]
[375088197,1753523442875,-943.5,0.00019452,2]
[375088199,1753523442885,-460.0,0.00019452,2]
[375088202,1753523442895,-460.0,0.00019452,2]
[375088204,1753523442904,-1129.76,0.00019452,2]
[375088206,1753523442914,-460.0,0.00019452,2]
[375088208,1753523442923,-1082.57,0.00019452,2]
[375088210,1753523442933,-538.78,0.00019452,2]
[375088212,1753523442942,-460.0,0.00019452,2]
[375088214,1753523442951,-1532.47,0.00019452,2]
[375088216,1753523442961,-488.22,0.00019452,2]
[375088218,1753523442970,-862.86,0.00019452,2]
[375088220,1753523442980,-460.0,0.00019452,2]
[375088222,1753523442990,-595.67,0.00019452,2]
[375088224,1753523442999,-11379.61,0.00019452,2]
[375088226,1753523443009,-665.0,0.00019452,2]
[375088228,1753523443018,-160.0,0.00019506,2]
[375088230,1753523443028,-215.9757969,0.00019511,2]
[375088232,1753523443038,-312.16666667,0.00019511,2]
[375088234,1753523443047,-160.0,0.00019511,2]
[375088236,1753523443056,-840.57612966,0.00019511,2]
[375088238,1753523443067,-214.8008262,0.00019511,2]
[375088239,1753523443076,-160.0,0.00019511,2]
[375088240,1753523443085,-231.25662632,0.00019511,2]
[375088241,1753523443095,-526.41699184,0.00019511,2]
[375088242,1753523443105,-476.98041219,0.00019511,2]
[375088243,1753523443115,-160.0,0.00019511,2]
[375088244,1753523443124,-160.0,0.00019511,2]
[375088245,1753523443134,-160.0,0.00019511,2]
[375088246,1753523443145,-160.0,0.00019511,2]
[375088247,1753523443156,-12629.83479014,0.00019511,2]
[375088248,1753523443165,-291.0,0.00019515,2]
[375088249,1753523443175,-291.0,0.00019594,2]
[375088250,1753523443184,-291.0,0.00019611,2]
[375088251,1753523443194,-250.0,0.00019691,2]
[375088252,1753523443203,-291.0,0.00019722,2]
[375088253,1753523443213,-501.05926252,0.00019722,2]
[375088254,1753523443223,-460.2192266,0.00019725,2]
[375088255,1753523443232,-470.57,0.00019725,2]
[375088256,1753523443241,-460.0,0.00019725,2]
[375088257,1753523443251,-434.79185302,0.00019725,2]
[375088258,1753523443261,-460.0,0.00019725,2]
[375088259,1753523443270,-460.0,0.00019725,2]
[375088260,1753523443281,-460.0,0.00019725,2]
[375088261,1753523443291,-460.0,0.00019725,2]
[375088262,1753523443301,-1686.37,0.00019725,2]
[375088263,1753523443311,-891.86,0.00019725,2]
[375088264,1753523443320,-3057.99,0.00019725,2]
[375088265,1753523443330,-2732.92,0.00019725,2]
[375088266,1753523443340,-835.25,0.00019725,2]
[375088267,1753523443350,-3801.73,0.00019725,2]
[375088268,1753523443359,-1933.29,0.00019725,2]
[375088269,1753523443369,-460.0,0.00019725,2]
[375088270,1753523443381,-739.41,0.00019725,2]
[375088271,1753523443390,-248.74475813,0.00019725,2]
[375088272,1753523443400,-2336.16,0.00019725,2]
[375088273,1753523443411,-460.0,0.00019725,2]
[375088274,1753523443421,-1367.32,0.00019725,2]
[375088275,1753523443431,-2935.74,0.00019725,2]
[375088276,1753523443441,-460.0,0.00019726,2]
[375088277,1753523443451,-578.6035736,0.00019726,2]
[375088278,1753523443460,-460.0,0.00019726,2]
[375088279,1753523443470,-460.0,0.00019726,2]
[375088280,1753523443479,-460.0,0.00019726,2]
[375088281,1753523443490,-460.0,0.00019726,2]
[375088282,1753523443500,-460.0,0.00019726,2]
[375088283,1753523443510,-460.0,0.00019726,2]
[375088284,1753523443520,-714.53,0.00019726,2]
[375088285,1753523443530,-491.19,0.00019726,2]
[375088286,1753523443540,-460.0,0.00019726,2]
[375088287,1753523443549,-460.0,0.00019726,2]
[375088288,1753523443559,-460.0,0.00019726,2]
[375088289,1753523443569,-594.41,0.00019726,2]
[375088290,1753523443578,-606.54,0.00019726,2]
[375088291,1753523443588,-460.0,0.00019726,2]
[375088292,1753523443597,-685.85,0.00019726,2]
[375088293,1753523443607,-460.0,0.00019726,2]
[375088294,1753523443617,-460.0,0.00019726,2]
[375088295,1753523443627,-460.0,0.00019726,2]
[375088296,1753523443636,-460.0,0.00019726,2]
[375088297,1753523443646,-460.0,0.00019726,2]
[375088298,1753523443656,-460.0,0.00019726,2]
[375088299,1753523443665,-460.0,0.00019726,2]
[375088300,1753523443676,-469.88118433,0.00019726,2]
[375088301,1753523443685,-533.92,0.00019726,2]
[375088302,1753523443695,-460.0,0.00019726,2]
[375088303,1753523443704,-511.73837375,0.00019726,2]
[375088304,1753523443714,-460.0,0.00019726,2]
[375088305,1753523443723,-460.0,0.00019726,2]
[375088306,1753523443733,-1107.95,0.00019726,2]
[375088307,1753523443743,-460.0,0.00019726,2]
[375088308,1753523443752,-938.81,0.00019726,2]
[375088309,1753523443763,-460.0,0.00019726,2]